[Event "*** Titled Tuesday 3|2 Blitz (Early)"]
[Site "Chess.com"]
[Date "2016.11.01"]
[Round "8"]
[White "avto24"]
[Black "Alexander_Moskalenko"]
[Result "1-0"]
[WhiteElo "2345"]
[BlackElo "2655"]
[TimeControl "180+2"]
[EndTime "12:48:08 PDT"]
[Termination "avto24 won by resignation"]

1. e4 {[%clk 0:03:01.9]} 1... c5 {[%clk 0:02:55.1]} 2. c3 {[%clk 0:03:02.3]}
2... Nf6 {[%clk 0:02:52.9]} 3. e5 {[%clk 0:02:59.9]} 3... Nd5 {[%clk 0:02:52.9]}
4. d4 {[%clk 0:03:01]} 4... cxd4 {[%clk 0:02:48.6]} 5. Nf3 {[%clk 0:03:01.5]}
5... e6 {[%clk 0:02:48.4]} 6. cxd4 {[%clk 0:03:02.2]} 6... d6 {[%clk 0:02:49.7]}
7. Bc4 {[%clk 0:03:00.5]} 7... Nc6 {[%clk 0:02:50.7]} 8. O-O {[%clk 0:03:01.4]}
8... Be7 {[%clk 0:02:43.6]} 9. Re1 {[%clk 0:03:02]} 9... O-O {[%clk 0:02:42.9]}
10. a3 {[%clk 0:02:39.9]} 10... Bd7 {[%clk 0:02:22.9]} 11. Bxd5 {[%clk
0:02:32.5]} 11... exd5 {[%clk 0:02:22.7]} 12. Nc3 {[%clk 0:02:34.2]} 12... dxe5
{[%clk 0:02:21.3]} 13. Nxd5 {[%clk 0:02:30.4]} 13... Be6 {[%clk 0:02:10.7]} 14.
Nxe7+ {[%clk 0:02:26.4]} 14... Qxe7 {[%clk 0:02:12.6]} 15. dxe5 {[%clk
0:02:25.7]} 15... Rfd8 {[%clk 0:02:12.9]} 16. Qc2 {[%clk 0:02:21.5]} 16... Rac8
{[%clk 0:02:12.9]} 17. Bg5 {[%clk 0:02:20]} 17... Nd4 {[%clk 0:02:08.9]} 18.
Nxd4 {[%clk 0:02:17.7]} 18... Qxg5 {[%clk 0:02:07.8]} 19. Nxe6 {[%clk
0:02:18.8]} 19... fxe6 {[%clk 0:02:03.2]} 20. Qb3 {[%clk 0:02:19.7]} 20... Qe7
{[%clk 0:02:03.1]} 21. h3 {[%clk 0:02:16.9]} 21... Rd5 {[%clk 0:02:03.3]} 22. f4
{[%clk 0:02:08.2]} 22... Rc6 {[%clk 0:02:01]} 23. Rad1 {[%clk 0:02:06.3]} 23...
Rb6 {[%clk 0:01:57.7]} 24. Qc3 {[%clk 0:02:02.7]} 24... Rc6 {[%clk 0:01:58.9]}
25. Qe3 {[%clk 0:02:00.6]} 25... Rcc5 {[%clk 0:01:58.4]} 26. b4 {[%clk
0:01:58.5]} 26... Rxd1 {[%clk 0:01:57.1]} 27. Rxd1 {[%clk 0:01:59.4]} 27... Rc4
{[%clk 0:01:59]} 28. g3 {[%clk 0:01:27.8]} 28... h5 {[%clk 0:01:54]} 29. Rd6
{[%clk 0:01:21.6]} 29... h4 {[%clk 0:01:54]} 30. g4 {[%clk 0:01:03.2]} 30... Qf8
{[%clk 0:01:48.8]} 31. Rd4 {[%clk 0:01:00.7]} 31... Qc8 {[%clk 0:01:46.5]} 32.
Rxc4 {[%clk 0:00:48.8]} 32... Qxc4 {[%clk 0:01:48.4]} 33. f5 {[%clk 0:00:46.3]}
33... Kf7 {[%clk 0:01:43.1]} 34. fxe6+ {[%clk 0:00:38.6]} 34... Kxe6 {[%clk
0:01:44]} 35. Qxa7 {[%clk 0:00:38.3]} 35... Qc1+ {[%clk 0:01:44.8]} 36. Kf2
{[%clk 0:00:39.4]} 36... Qd2+ {[%clk 0:01:44.4]} 37. Kf3 {[%clk 0:00:37.8]}
37... Qd3+ {[%clk 0:01:45.8]} 38. Kf4 {[%clk 0:00:38.2]} 38... Qd2+ {[%clk
0:01:15.9]} 39. Qe3 {[%clk 0:00:38.4]} 39... Qh2+ {[%clk 0:01:11.8]} 40. Kg5
{[%clk 0:00:37.5]} 40... Qg3 {[%clk 0:01:07.4]} 41. Qd4 {[%clk 0:00:35]} 41...
Qxh3 {[%clk 0:01:02.6]} 42. Kg6 {[%clk 0:00:25.1]} 42... Ke7 {[%clk 0:01:04.1]}
43. Qd6+ {[%clk 0:00:21.3]} 43... Ke8 {[%clk 0:01:05.3]} 44. g5 {[%clk 0:00:18]}
44... Qd7 {[%clk 0:00:50.8]} 45. Qxd7+ {[%clk 0:00:16.8]} 45... Kxd7 {[%clk
0:00:52.7]} 46. Kf7 {[%clk 0:00:18.4]} 46... h3 {[%clk 0:00:54.1]} 47. e6+
{[%clk 0:00:19.9]} 47... Kd6 {[%clk 0:00:41.7]} 48. e7 {[%clk 0:00:20.5]} 48...
h2 {[%clk 0:00:43.6]} 49. e8=Q {[%clk 0:00:22]} 49... h1=Q {[%clk 0:00:45.5]}
50. Qe7+ {[%clk 0:00:21.5]} 50... Kc6 {[%clk 0:00:43.7]} 51. Kxg7 {[%clk
0:00:19.6]} 51... Kb5 {[%clk 0:00:43.5]} 52. Qc5+ {[%clk 0:00:19]} 52... Ka4
{[%clk 0:00:44.2]} 53. b5 {[%clk 0:00:18.9]} 53... Ka5 {[%clk 0:00:36.8]} 54.
Qb4+ {[%clk 0:00:13.7]} 54... Kb6 {[%clk 0:00:38.1]} 55. a4 {[%clk 0:00:12.8]}
55... Qa1+ {[%clk 0:00:39.6]} 56. Kh7 {[%clk 0:00:11.2]} 56... Qh1+ {[%clk
0:00:37.9]} 57. Kg8 {[%clk 0:00:11.3]} 57... Qd5+ {[%clk 0:00:39.2]} 58. Kf8
{[%clk 0:00:09.1]} 58... Qf5+ {[%clk 0:00:37.1]} 59. Ke8 {[%clk 0:00:09.1]}
59... Qg6+ {[%clk 0:00:20.8]} 60. Kd7 {[%clk 0:00:08.1]} 60... Qf5+ {[%clk
0:00:15.6]} 61. Ke8 {[%clk 0:00:06.6]} 61... Qg6+ {[%clk 0:00:16.8]} 62. Kf8
{[%clk 0:00:07.1]} 62... Qf5+ {[%clk 0:00:17.7]} 63. Ke8 {[%clk 0:00:07.8]}
63... Qg6+ {[%clk 0:00:19]} 64. Ke7 {[%clk 0:00:08.1]} 64... Qxg5+ {[%clk
0:00:20.2]} 65. Kd7 {[%clk 0:00:08.9]} 65... Qd5+ {[%clk 0:00:21.2]} 66. Qd6+
{[%clk 0:00:06.7]} 66... Qxd6+ {[%clk 0:00:21.1]} 67. Kxd6 {[%clk 0:00:07.9]}
67... Ka5 {[%clk 0:00:23]} 68. Kc7 {[%clk 0:00:08.3]} 68... b6 {[%clk
0:00:18.6]} 69. Kc6 {[%clk 0:00:08.9]} 69... Kxa4 {[%clk 0:00:20.2]} 70. Kxb6
{[%clk 0:00:10.4]} 70... Kb4 {[%clk 0:00:22.1]} 71. Kc6 {[%clk 0:00:11.7]} 71...
Ka5 {[%clk 0:00:20.7]} 72. b6 {[%clk 0:00:12.3]} 72... Ka6 {[%clk 0:00:22.6]}
73. Kc7 {[%clk 0:00:13.3]} 1-0

[Event "*** Titled Tuesday 3|2 Blitz (Early)"]
[Site "Chess.com"]
[Date "2016.11.01"]
[Round "9"]
[White "TheSovietChess"]
[Black "Keaton87"]
[Result "1-0"]
[WhiteElo "2509"]
[BlackElo "2449"]
[TimeControl "180+2"]
[EndTime "12:55:26 PDT"]
[Termination "TheSovietChess won by resignation"]

1. d4 {[%clk 0:03:02]} 1... Nf6 {[%clk 0:02:58.7]} 2. c4 {[%clk 0:03:03]} 2...
g6 {[%clk 0:03:00]} 3. Nc3 {[%clk 0:03:04.5]} 3... Bg7 {[%clk 0:03:01.4]} 4. e3
{[%clk 0:03:06.2]} 4... O-O {[%clk 0:03:01.1]} 5. Bd3 {[%clk 0:03:07.8]} 5... d6
{[%clk 0:03:02.1]} 6. h4 {[%clk 0:03:09.4]} 6... Nbd7 {[%clk 0:03:02.6]} 7. h5
{[%clk 0:03:10.4]} 7... c5 {[%clk 0:03:01.7]} 8. hxg6 {[%clk 0:03:09.5]} 8...
fxg6 {[%clk 0:03:02.2]} 9. d5 {[%clk 0:03:10.1]} 9... b5 {[%clk 0:03:01.5]} 10.
b3 {[%clk 0:03:08.2]} 10... bxc4 {[%clk 0:03:01.4]} 11. bxc4 {[%clk 0:03:07.2]}
11... Rb8 {[%clk 0:03:02.8]} 12. Bd2 {[%clk 0:03:07.8]} 12... Ne5 {[%clk
0:03:03.7]} 13. Be2 {[%clk 0:03:08.4]} 13... e6 {[%clk 0:03:04.9]} 14. f4 {[%clk
0:03:09.4]} 14... Neg4 {[%clk 0:03:05.6]} 15. Bxg4 {[%clk 0:03:09]} 15... exd5
{[%clk 0:03:05.7]} 16. Bxc8 {[%clk 0:03:09.3]} 16... Qxc8 {[%clk 0:03:05.8]} 17.
cxd5 {[%clk 0:03:09.1]} 17... Ng4 {[%clk 0:03:01.4]} 18. Nh3 {[%clk 0:02:59.4]}
18... Nxe3 {[%clk 0:03:01]} 19. Qc1 {[%clk 0:02:59.2]} 19... Nxg2+ {[%clk
0:02:55.3]} 20. Kf1 {[%clk 0:02:59.9]} 20... Qg4 {[%clk 0:02:47.5]} 21. Nf2
{[%clk 0:03:00.2]} 21... Nxf4 {[%clk 0:02:07.4]} 22. Nxg4 {[%clk 0:02:59.7]}
22... Nd3+ {[%clk 0:02:08.4]} 23. Ke2 {[%clk 0:03:00.5]} 23... Nxc1+ {[%clk
0:02:03.8]} 24. Raxc1 {[%clk 0:03:02.4]} 24... c4 {[%clk 0:01:58.2]} 25. Ne4
{[%clk 0:03:03.1]} 25... Rbe8 {[%clk 0:01:55.3]} 26. Rxc4 {[%clk 0:03:03.3]}
26... h5 {[%clk 0:01:52.9]} 27. Ne3 {[%clk 0:03:03.7]} 27... Rf4 {[%clk
0:01:52.1]} 28. Nxd6 {[%clk 0:03:04.4]} 1-0

[Event "*** Titled Tuesday 3|2 Blitz (Early)"]
[Site "Chess.com"]
[Date "2016.11.01"]
[Round "9"]
[White "saraswathii"]
[Black "Drags95"]
[Result "0-1"]
[WhiteElo "2202"]
[BlackElo "2454"]
[TimeControl "180+2"]
[EndTime "12:57:16 PDT"]
[Termination "Drags95 won by resignation"]

1. e4 {[%clk 0:02:33.3]} 1... c5 {[%clk 0:03:00.1]} 2. Nf3 {[%clk 0:02:32.4]}
2... d6 {[%clk 0:03:01.5]} 3. d3 {[%clk 0:02:33]} 3... Nf6 {[%clk 0:03:02.3]} 4.
g3 {[%clk 0:02:33.4]} 4... g6 {[%clk 0:03:03.2]} 5. Bg2 {[%clk 0:02:33.7]} 5...
Bg7 {[%clk 0:03:00.7]} 6. O-O {[%clk 0:02:33.4]} 6... O-O {[%clk 0:03:02.3]} 7.
c3 {[%clk 0:02:32.4]} 7... Nc6 {[%clk 0:03:03.6]} 8. Re1 {[%clk 0:02:20.8]} 8...
Bg4 {[%clk 0:03:04.1]} 9. Nbd2 {[%clk 0:02:18.9]} 9... Nd7 {[%clk 0:03:04.4]}
10. h3 {[%clk 0:02:19.5]} 10... Bxf3 {[%clk 0:03:04.7]} 11. Nxf3 {[%clk
0:02:21.4]} 11... b5 {[%clk 0:03:03.3]} 12. d4 {[%clk 0:02:19.1]} 12... b4
{[%clk 0:02:59.3]} 13. Be3 {[%clk 0:02:13.1]} 13... a5 {[%clk 0:02:55.5]} 14.
Qd2 {[%clk 0:02:07.9]} 14... Nb6 {[%clk 0:02:52.8]} 15. Qe2 {[%clk 0:01:58.5]}
15... cxd4 {[%clk 0:02:44]} 16. cxd4 {[%clk 0:01:49.7]} 16... d5 {[%clk
0:02:45.3]} 17. exd5 {[%clk 0:01:48.5]} 17... Nxd5 {[%clk 0:02:46]} 18. Rac1
{[%clk 0:01:48.1]} 18... Rc8 {[%clk 0:02:44.7]} 19. Qb5 {[%clk 0:01:48.5]} 19...
Qd6 {[%clk 0:02:39.7]} 20. Ne5 {[%clk 0:01:34.6]} 20... Nxe3 {[%clk 0:02:37.5]}
21. Nxc6 {[%clk 0:01:32.6]} 21... Nf5 {[%clk 0:02:33.5]} 22. g4 {[%clk
0:01:29.5]} 22... Nxd4 {[%clk 0:02:34.5]} 23. Nxd4 {[%clk 0:01:22]} 23... Bxd4
{[%clk 0:02:36.4]} 24. Rcd1 {[%clk 0:01:11.7]} 24... Rc2 {[%clk 0:02:33.5]} 25.
Rf1 {[%clk 0:00:58]} 25... Rxf2 {[%clk 0:02:30.6]} 26. Kh1 {[%clk 0:00:44.7]}
26... Rxb2 {[%clk 0:02:29.1]} 27. Qxa5 {[%clk 0:00:44.4]} 27... Qg3 {[%clk
0:02:26.7]} 28. Rg1 {[%clk 0:00:40.9]} 28... Rxg2 {[%clk 0:02:23.2]} 29. Rxg2
{[%clk 0:00:40.3]} 29... Qxh3+ {[%clk 0:02:24.2]} 30. Rh2 {[%clk 0:00:35.7]}
30... Qf3+ {[%clk 0:02:26.1]} 31. Rg2 {[%clk 0:00:34.5]} 31... Qxd1+ {[%clk
0:02:26.8]} 32. Kh2 {[%clk 0:00:33.9]} 32... Qe1 {[%clk 0:02:27.2]} 0-1

[Event "*** Titled Tuesday 3|2 Blitz (Early)"]
[Site "Chess.com"]
[Date "2016.11.01"]
[Round "9"]
[White "Usurpov"]
[Black "KestutisLabeckas"]
[Result "1-0"]
[WhiteElo "2305"]
[BlackElo "2452"]
[TimeControl "180+2"]
[EndTime "12:57:28 PDT"]
[Termination "Usurpov won on time"]

1. e4 {[%clk 0:03:01.9]} 1... c6 {[%clk 0:02:56.5]} 2. d4 {[%clk 0:03:02.6]}
2... d5 {[%clk 0:02:58.4]} 3. Nc3 {[%clk 0:03:04.2]} 3... dxe4 {[%clk 0:02:59]}
4. Nxe4 {[%clk 0:03:06.1]} 4... Bf5 {[%clk 0:03:00.5]} 5. Ng3 {[%clk 0:03:07]}
5... Bg6 {[%clk 0:03:01.9]} 6. Nf3 {[%clk 0:03:08]} 6... Nd7 {[%clk 0:03:02.7]}
7. h4 {[%clk 0:03:09.1]} 7... h6 {[%clk 0:03:04]} 8. h5 {[%clk 0:03:10.5]} 8...
Bh7 {[%clk 0:03:05.5]} 9. Bd3 {[%clk 0:03:11.8]} 9... Bxd3 {[%clk 0:03:07]} 10.
Qxd3 {[%clk 0:03:13.7]} 10... e6 {[%clk 0:03:06.9]} 11. Bd2 {[%clk 0:03:14.9]}
11... Qb6 {[%clk 0:03:05.5]} 12. O-O-O {[%clk 0:03:03.5]} 12... Ngf6 {[%clk
0:03:01.5]} 13. Ne4 {[%clk 0:03:04.2]} 13... Nxe4 {[%clk 0:03:01.3]} 14. Qxe4
{[%clk 0:03:06.1]} 14... Nf6 {[%clk 0:03:01.3]} 15. Qe2 {[%clk 0:02:53.6]} 15...
Qb5 {[%clk 0:03:02.2]} 16. c4 {[%clk 0:02:45.3]} 16... Qa6 {[%clk 0:03:03.1]}
17. Kb1 {[%clk 0:02:42.9]} 17... Be7 {[%clk 0:03:02.7]} 18. Ne5 {[%clk
0:02:41.6]} 18... O-O {[%clk 0:03:02.1]} 19. g4 {[%clk 0:02:39.4]} 19... Nh7
{[%clk 0:02:38.7]} 20. f4 {[%clk 0:02:21.8]} 20... Rad8 {[%clk 0:02:37.7]} 21.
g5 {[%clk 0:02:10]} 21... Rxd4 {[%clk 0:02:09.4]} 22. gxh6 {[%clk 0:02:09]}
22... gxh6 {[%clk 0:02:09.5]} 23. Rhg1+ {[%clk 0:02:09.3]} 23... Kh8 {[%clk
0:02:10.5]} 24. Qg2 {[%clk 0:02:08.3]} 24... Bf6 {[%clk 0:01:42]} 25. Nxf7+
{[%clk 0:02:07.3]} 1-0

[Event "*** Titled Tuesday 3|2 Blitz (Early)"]
[Site "Chess.com"]
[Date "2016.11.01"]
[Round "9"]
[White "RitvarsReimanis"]
[Black "GM_dmitrij"]
[Result "0-1"]
[WhiteElo "2395"]
[BlackElo "2420"]
[TimeControl "180+2"]
[EndTime "12:58:39 PDT"]
[Termination "GM_dmitrij won by resignation"]

1. d4 {[%clk 0:03:00.6]} 1... Nf6 {[%clk 0:03:00.5]} 2. c4 {[%clk 0:03:01.4]}
2... g6 {[%clk 0:03:01.6]} 3. f3 {[%clk 0:02:59.6]} 3... Bg7 {[%clk 0:03:01.8]}
4. e4 {[%clk 0:03:00.9]} 4... O-O {[%clk 0:03:03]} 5. Nc3 {[%clk 0:03:01.7]}
5... d6 {[%clk 0:03:03.7]} 6. Be3 {[%clk 0:03:02.4]} 6... c5 {[%clk 0:03:05]} 7.
Nge2 {[%clk 0:03:02.8]} 7... Nc6 {[%clk 0:03:05.8]} 8. Qd2 {[%clk 0:03:04.1]}
8... Qa5 {[%clk 0:03:06]} 9. O-O-O {[%clk 0:03:03.4]} 9... a6 {[%clk 0:03:04]}
10. Kb1 {[%clk 0:03:04.6]} 10... b5 {[%clk 0:03:02.7]} 11. dxc5 {[%clk
0:03:05.2]} 11... dxc5 {[%clk 0:03:03.4]} 12. Nd5 {[%clk 0:03:02.9]} 12... Nxd5
{[%clk 0:03:04.5]} 13. Qxa5 {[%clk 0:03:01.5]} 13... Nxa5 {[%clk 0:02:54.2]} 14.
cxd5 {[%clk 0:03:02.5]} 14... Nc4 {[%clk 0:02:37.7]} 15. Bc1 {[%clk 0:02:32.1]}
15... f5 {[%clk 0:02:38.2]} 16. Nc3 {[%clk 0:02:27.5]} 16... Nd6 {[%clk
0:02:29.5]} 17. Bg5 {[%clk 0:02:16.6]} 17... Rf7 {[%clk 0:02:21.9]} 18. Be3
{[%clk 0:02:13.8]} 18... c4 {[%clk 0:02:11.6]} 19. Bc5 {[%clk 0:01:57.6]} 19...
Bxc3 {[%clk 0:02:01.6]} 20. bxc3 {[%clk 0:01:57.2]} 20... fxe4 {[%clk
0:02:02.9]} 21. Bxd6 {[%clk 0:01:51.5]} 21... exd6 {[%clk 0:02:03.9]} 22. fxe4
{[%clk 0:01:52.8]} 22... Rf2 {[%clk 0:02:00.4]} 23. Re1 {[%clk 0:01:39.4]} 23...
Bd7 {[%clk 0:01:55.1]} 24. a4 {[%clk 0:01:35.2]} 24... bxa4 {[%clk 0:01:38.6]}
25. Bxc4 {[%clk 0:01:35.1]} 25... Rb8+ {[%clk 0:01:39.9]} 26. Ka1 {[%clk
0:01:36.5]} 26... Rbb2 {[%clk 0:01:38.3]} 27. e5 {[%clk 0:01:36.8]} 27... Bb5
{[%clk 0:01:28.4]} 28. Re4 {[%clk 0:01:37.5]} 28... Bxc4 {[%clk 0:01:27.7]} 29.
Rxc4 {[%clk 0:01:39.4]} 29... a3 {[%clk 0:01:25.6]} 30. Rb4 {[%clk 0:01:37.9]}
30... dxe5 {[%clk 0:01:21.1]} 31. Rd1 {[%clk 0:01:24]} 31... Kf7 {[%clk
0:01:18.6]} 32. d6 {[%clk 0:01:23.2]} 32... Ke8 {[%clk 0:01:19.8]} 33. Rxb2
{[%clk 0:01:15.9]} 33... axb2+ {[%clk 0:01:19.4]} 34. Ka2 {[%clk 0:01:14.9]}
34... Rxg2 {[%clk 0:01:10.8]} 35. Kb3 {[%clk 0:01:11.3]} 35... Kd7 {[%clk
0:01:08.1]} 36. c4 {[%clk 0:01:12.4]} 36... Rd2 {[%clk 0:01:06.3]} 37. Rb1
{[%clk 0:00:54.7]} 37... Kxd6 {[%clk 0:01:06.7]} 38. Kb4 {[%clk 0:00:54.2]}
38... Rxh2 {[%clk 0:01:05.9]} 0-1

[Event "*** Titled Tuesday 3|2 Blitz (Early)"]
[Site "Chess.com"]
[Date "2016.11.01"]
[Round "9"]
[White "E-Shaposhnikov"]
[Black "Gabrielian_Artur"]
[Result "1/2-1/2"]
[WhiteElo "2704"]
[BlackElo "2577"]
[TimeControl "180+2"]
[EndTime "12:58:56 PDT"]
[Termination "Game drawn by agreement"]

1. e4 {[%clk 0:03:01.9]} 1... c5 {[%clk 0:03:00.5]} 2. Nf3 {[%clk 0:03:02.7]}
2... d6 {[%clk 0:03:01.9]} 3. d4 {[%clk 0:03:03.1]} 3... cxd4 {[%clk 0:03:03.3]}
4. Nxd4 {[%clk 0:03:05]} 4... Nf6 {[%clk 0:03:04.1]} 5. Nc3 {[%clk 0:03:06.5]}
5... a6 {[%clk 0:03:05.6]} 6. g3 {[%clk 0:03:06]} 6... e6 {[%clk 0:03:06.3]} 7.
Bg2 {[%clk 0:03:05.9]} 7... Be7 {[%clk 0:03:07.7]} 8. O-O {[%clk 0:03:07.3]}
8... O-O {[%clk 0:03:08.7]} 9. Be3 {[%clk 0:03:08.5]} 9... Nc6 {[%clk
0:03:09.6]} 10. Nxc6 {[%clk 0:03:04.9]} 10... bxc6 {[%clk 0:03:10.8]} 11. e5
{[%clk 0:03:06.8]} 11... dxe5 {[%clk 0:03:11.8]} 12. Qxd8 {[%clk 0:03:03.9]}
12... Rxd8 {[%clk 0:03:12.4]} 13. Bxc6 {[%clk 0:03:05.5]} 13... Rb8 {[%clk
0:03:13.7]} 14. b3 {[%clk 0:03:05.7]} 14... Bb7 {[%clk 0:03:05.7]} 15. Bxb7
{[%clk 0:03:05.8]} 15... Rxb7 {[%clk 0:03:07]} 16. Na4 {[%clk 0:03:05.2]} 16...
Nd5 {[%clk 0:03:07.6]} 17. Rfd1 {[%clk 0:02:51.2]} 17... Nxe3 {[%clk 0:02:45.8]}
18. Rxd8+ {[%clk 0:02:44.4]} 18... Bxd8 {[%clk 0:02:46.9]} 19. fxe3 {[%clk
0:02:46.3]} 19... Rd7 {[%clk 0:02:44.6]} 20. Nb2 {[%clk 0:02:40.1]} 20... e4
{[%clk 0:02:21.7]} 21. Rd1 {[%clk 0:02:28.9]} 21... Rxd1+ {[%clk 0:02:22.2]} 22.
Nxd1 {[%clk 0:02:30.8]} 22... f5 {[%clk 0:02:22.9]} 23. b4 {[%clk 0:02:16]}
23... Kf7 {[%clk 0:02:15.2]} 24. a4 {[%clk 0:02:05.9]} 24... Ke7 {[%clk
0:02:15.7]} 25. Kf2 {[%clk 0:01:59.8]} 25... Kd6 {[%clk 0:02:16.1]} 26. Ke2
{[%clk 0:01:59.5]} 26... g5 {[%clk 0:02:16.6]} 27. a5 {[%clk 0:01:50.4]} 27...
h5 {[%clk 0:01:54.7]} 28. c4 {[%clk 0:01:49.7]} 28... Bf6 {[%clk 0:01:42.4]} 29.
Kd2 {[%clk 0:01:49.8]} 29... Kc6 {[%clk 0:01:38.5]} 30. Nc3 {[%clk 0:01:48.2]}
30... Bxc3+ {[%clk 0:01:10.3]} 31. Kxc3 {[%clk 0:01:48.4]} 31... e5 {[%clk
0:01:09.4]} 32. Kd2 {[%clk 0:01:21.5]} 32... f4 {[%clk 0:01:02.2]} 33. Ke2
{[%clk 0:01:07.4]} 33... f3+ {[%clk 0:01:01.2]} 34. Ke1 {[%clk 0:01:07.5]} 34...
g4 {[%clk 0:01:02.2]} 35. Kd2 {[%clk 0:00:56.4]} 35... Kc7 {[%clk 0:01:01.4]}
1/2-1/2

[Event "*** Titled Tuesday 3|2 Blitz (Early)"]
[Site "Chess.com"]
[Date "2016.11.01"]
[Round "9"]
[White "metalbattler"]
[Black "Wolverine_master"]
[Result "1-0"]
[WhiteElo "2036"]
[BlackElo "2074"]
[TimeControl "180+2"]
[EndTime "12:59:12 PDT"]
[Termination "metalbattler won on time"]

1. e4 {[%clk 0:02:41.4]} 1... d5 {[%clk 0:02:58.5]} 2. exd5 {[%clk 0:02:41.8]}
2... Qxd5 {[%clk 0:03:00.4]} 3. d4 {[%clk 0:02:42.8]} 3... Nc6 {[%clk
0:03:00.9]} 4. Nf3 {[%clk 0:02:40.6]} 4... Bg4 {[%clk 0:03:01.4]} 5. Be2 {[%clk
0:02:40.3]} 5... O-O-O {[%clk 0:02:59.6]} 6. c3 {[%clk 0:02:38.3]} 6... Nf6
{[%clk 0:02:35.1]} 7. O-O {[%clk 0:02:36.5]} 7... e5 {[%clk 0:02:31.8]} 8. dxe5
{[%clk 0:02:31.5]} 8... Nxe5 {[%clk 0:02:18.9]} 9. Nxe5 {[%clk 0:02:27.8]} 9...
Qxd1 {[%clk 0:02:02.6]} 10. Bxd1 {[%clk 0:02:24]} 10... Rxd1 {[%clk 0:01:54.2]}
11. Nxf7 {[%clk 0:02:10.7]} 11... Rg8 {[%clk 0:01:30.3]} 12. Ne5 {[%clk
0:02:08.4]} 12... Bd6 {[%clk 0:01:18.6]} 13. Nxg4 {[%clk 0:01:58.7]} 13... Rxf1+
{[%clk 0:01:18.5]} 14. Kxf1 {[%clk 0:01:59.8]} 14... Nxg4 {[%clk 0:01:16.1]} 15.
h3 {[%clk 0:02:01]} 15... Ne5 {[%clk 0:01:15.3]} 16. Nd2 {[%clk 0:01:47.9]}
16... Rf8 {[%clk 0:01:00.1]} 17. Ne4 {[%clk 0:01:39.7]} 17... Nd3 {[%clk
0:00:58.5]} 18. Rb1 {[%clk 0:01:32.4]} 18... Bf4 {[%clk 0:00:25.3]} 19. Bxf4
{[%clk 0:01:30.7]} 19... Rxf4 {[%clk 0:00:26.7]} 20. f3 {[%clk 0:01:26.3]} 20...
b6 {[%clk 0:00:11]} 21. Ke2 {[%clk 0:01:27.3]} 21... Ne5 {[%clk 0:00:11.7]} 22.
b3 {[%clk 0:01:24.3]} 22... h6 {[%clk 0:00:11.9]} 23. Rd1 {[%clk 0:01:25]} 23...
Rf8 {[%clk 0:00:08]} 24. Rd5 {[%clk 0:01:23.5]} 24... Ng6 {[%clk 0:00:08.8]} 25.
g3 {[%clk 0:01:09.1]} 25... Ne7 {[%clk 0:00:06.9]} 26. Rd3 {[%clk 0:00:55.7]}
26... Ng6 {[%clk 0:00:05.5]} 27. f4 {[%clk 0:00:50.9]} 27... Ne7 {[%clk
0:00:03.3]} 28. Kf3 {[%clk 0:00:50.7]} 1-0

[Event "*** Titled Tuesday 3|2 Blitz (Early)"]
[Site "Chess.com"]
[Date "2016.11.01"]
[Round "9"]
[White "Mbneu"]
[Black "RodinMihail"]
[Result "0-1"]
[WhiteElo "2137"]
[BlackElo "2423"]
[TimeControl "180+2"]
[EndTime "12:59:29 PDT"]
[Termination "RodinMihail won by resignation"]

1. d4 {[%clk 0:03:01.9]} 1... d5 {[%clk 0:03:00.9]} 2. c4 {[%clk 0:03:02.6]}
2... e6 {[%clk 0:03:02]} 3. Nc3 {[%clk 0:03:04]} 3... c6 {[%clk 0:03:03.1]} 4.
e4 {[%clk 0:03:03]} 4... dxe4 {[%clk 0:03:05]} 5. Nxe4 {[%clk 0:03:04.4]} 5...
Bb4+ {[%clk 0:03:06.2]} 6. Bd2 {[%clk 0:03:05.5]} 6... Qxd4 {[%clk 0:03:06.4]}
7. Bxb4 {[%clk 0:03:06]} 7... Qxe4+ {[%clk 0:03:07.9]} 8. Be2 {[%clk 0:03:06.6]}
8... Nd7 {[%clk 0:03:08.9]} 9. Qd6 {[%clk 0:03:02.8]} 9... Qe5 {[%clk
0:03:09.5]} 10. Qd3 {[%clk 0:02:54.8]} 10... Ngf6 {[%clk 0:02:59.5]} 11. Nf3
{[%clk 0:02:53.2]} 11... Qf5 {[%clk 0:02:34.4]} 12. Qd6 {[%clk 0:02:45.3]} 12...
c5 {[%clk 0:02:35.5]} 13. g4 {[%clk 0:02:26.5]} 13... Nxg4 {[%clk 0:02:26.7]}
14. Bc3 {[%clk 0:02:21.9]} 14... Ngf6 {[%clk 0:02:26.2]} 15. Rg1 {[%clk
0:02:19.9]} 15... Ne4 {[%clk 0:02:23.4]} 16. Qd3 {[%clk 0:02:18.8]} 16... Nxc3
{[%clk 0:02:11.9]} 17. Qxc3 {[%clk 0:02:19]} 17... Qf6 {[%clk 0:02:07.7]} 18.
Qc2 {[%clk 0:02:17.9]} 18... O-O {[%clk 0:01:54.6]} 19. Ng5 {[%clk 0:02:16]}
19... g6 {[%clk 0:01:55]} 20. Qd3 {[%clk 0:02:07.4]} 20... Qxb2 {[%clk
0:01:45.3]} 21. Rd1 {[%clk 0:01:54.9]} 21... e5 {[%clk 0:01:33.3]} 22. Ne4
{[%clk 0:01:36.4]} 22... Kg7 {[%clk 0:01:18.3]} 23. Qd6 {[%clk 0:01:28.3]} 23...
Qb4+ {[%clk 0:01:11.9]} 24. Kf1 {[%clk 0:01:27.7]} 24... Qb6 {[%clk 0:01:12.7]}
25. Qe7 {[%clk 0:01:22.9]} 25... Nf6 {[%clk 0:01:03.2]} 26. Rd6 {[%clk
0:01:00.1]} 26... Bh3+ {[%clk 0:01:02.8]} 27. Ke1 {[%clk 0:00:54.8]} 27... Qb4+
{[%clk 0:00:58.9]} 28. Nd2 {[%clk 0:00:55]} 28... Nd7 {[%clk 0:00:43.6]} 29.
Rxd7 {[%clk 0:00:40.9]} 29... Bxd7 {[%clk 0:00:43.5]} 30. Qxe5+ {[%clk
0:00:29.3]} 30... f6 {[%clk 0:00:43.6]} 31. Qe7+ {[%clk 0:00:27.6]} 31... Rf7
{[%clk 0:00:44.7]} 32. Qd6 {[%clk 0:00:28.6]} 32... Re8 {[%clk 0:00:43.6]} 33.
Kf1 {[%clk 0:00:27.2]} 33... Bh3+ {[%clk 0:00:40.6]} 34. Ke1 {[%clk 0:00:27.6]}
34... Rfe7 {[%clk 0:00:39.9]} 0-1